Cogmind - Beta 13 @@@ ROGUE MODE // 2024.04.17 @ 17:46:18 Player: SovietPaperclip Result: Self-destructed Performance ------------- Evolutions (2) 1000 Regions Visited (6) 1200 Robots Destroyed (70) 350 Value Destroyed (1643) 1643 Prototype IDs (5) 100 Alien Tech Used (0) 0 Bonus (68) 68 TOTAL SCORE: 4361 Bonus ------- High Alert Combat Kills 68 Cogmind --------- Core Integrity 498/550 Matter 160/300 Energy 275/275 System Corruption 1% Temperature Warm (145) Movement Treading (240) Ox1 Location -8/Materials Parts ------- > --- POWER (1) -------- Deuterium Engine > --- PROPULSION (4) --- Light Treads Light Treads > --- UTILITY (4) ------ Large Storage Unit Reflective Plating > --- WEAPON (2) ------- Flak Cannon Missile Launcher > --- INVENTORY (15) --- Cesium-ion Thruster Medium Storage Unit Large Matter Pod (150) Particle Charger Reaction Control System Hacking Suite System Shield System Shield Improved Assault Rifle Minigun Flak Cannon Flak Cannon Flak Cannon Plasma Cutter Mace Peak State ------------ > --- POWER ------------ Deuterium Engine > --- PROPULSION ------- Light Treads Light Treads Light Treads > --- UTILITY ---------- Large Storage Unit Light Armor Plating Hardlight Generator > --- WEAPON ----------- Improved Assault Rifle Improved Assault Rifle > --- INVENTORY -------- Deuterium Engine Medium Storage Unit Large Matter Pod Reaction Control System Hacking Suite System Shield System Shield Flak Cannon Flak Cannon Flak Cannon Flak Cannon Grenade Launcher Mini Grenade Launcher Plasma Cutter Mace [Rating: 20] Favorites ----------- Power Deuterium Engine Engine Deuterium Engine Propulsion Light Treads Treads Light Treads Leg Aluminum Leg Flight Unit Improved Flight Unit Utility Large Storage Unit Device Hardlight Generator Storage Large Storage Unit Processor Transport Network Coupler Protection Light Armor Plating Weapon Improved Assault Rifle Energy Cannon Advanced Beam Cannon Ballistic Gun Improved Assault Rifle Ballistic Cannon Flak Cannon Launcher Grenade Launcher Build | -11 -10 -9 -9 -9 -8 -8 ------- Run | Yrd Mat Mat Min Exi Min Mat Slots Evolved 4 | . . 2 . . . 2 Power . | . . . . . . . Propulsion 2 | . . 1 . . . 1 Utility 2 | . . 1 . . . 1 Weapon . | . . . . . . . Parts Attached 48 | 6 4 27 . . 5 6 Power 8 | 1 . 6 . . . 1 Engine 8 | 1 . 6 . . . 1 Core . | . . . . . . . Reactor . | . . . . . . . Propulsion 10 | 2 . 5 . . 2 1 Treads 8 | 2 . 4 . . 1 1 Leg 1 | . . . . . 1 . Wheel . | . . . . . . . Hover . | . . . . . . . Flight 1 | . . 1 . . . . Utility 14 | 1 . 10 . . . 3 Device 5 | . . 4 . . . 1 Storage 3 | 1 . 2 . . . . Processor 1 | . . 1 . . . . Hackware . | . . . . . . . Protection 5 | . . 3 . . . 2 Artifact . | . . . . . . . Weapon 16 | 2 4 6 . . 3 1 Energy Gun . | . . . . . . . Energy Cannon 3 | . 1 2 . . . . Ballistic Gun 8 | 2 2 3 . . 1 . Ballistic Cannon 1 | . . . . . 1 . Launcher 4 | . 1 1 . . 1 1 Special Weapon . | . . . . . . . Impact Weapon . | . . . . . . . Slashing Weapon . | . . . . . . . Piercing Weapon . | . . . . . . . Special Melee Weapon . | . . . . . . . Unidentified Prototypes 5 | . 1 4 . . . . Parts Lost 11 | . . 4 . . 6 1 Power 2 | . . 1 . . 1 . Propulsion 4 | . . 2 . . 2 . Utility 4 | . . 1 . . 2 1 Weapon 1 | . . . . . 1 . Highest Loss Streak 6 | . . 1 . . 6 1 To Critical Strikes 1 | . . . . . 1 . Average Slot Usage (%) 88 | . 85 91 100 100 89 57 Engine 10 | . 14 10 11 11 9 9 Treads 28 | . 28 29 33 33 28 13 Device 6 | . . 7 11 11 8 . Storage 11 | . 14 12 11 11 11 9 Protection 7 | . . 7 11 11 9 8 Energy Cannon 2 | . . 5 . . . . Ballistic Gun 18 | . 27 16 22 22 20 8 Naked Turns . | . . . . . . . Heaviest Build 49 | 13 13 48 43 43 43 49 Greatest Support 60 | 40 40 60 60 60 60 40 Greatest Overweight (x) 9 | 1 . 1 . . 9 2 Average Overweight (x) . | . . . . . . 1 Largest Inventory Capacity 15 | 8 8 15 15 15 15 15 Average Capacity 12 | 7 8 11 15 15 15 15 Most Carried 15 | 5 7 15 15 15 15 15 Average Carried 11 | 1 5 10 15 15 14 14 Final Capacity 15 | 8 8 15 15 15 15 15 Final Carried 15 | 1 7 15 15 15 14 15 Class Distribution -------------------- 60% | Mutant 39% | Scavenger-Mutant Dominant Class ---------------- Mutant | -10/Materials Mutant | -9/Materials Scavenger-Mutant | -9/Mines Scavenger-Mutant | -9/Exiles Scavenger-Mutant | -8/Mines Mutant | -8/Materials Resources | -11 -10 -9 -9 -9 -8 -8 ----------- Run | Yrd Mat Mat Min Exi Min Mat Matter Collected 1515 | 252 238 738 . . 162 125 Remotely . | . . . . . . . Salvage Created 2124 | . 291 1303 . . 216 314 Parts 144 | . 22 81 . . 18 23 Haulers Intercepted 6 | . . 6 . . . . Recyclers Shooed 4 | . . 1 . . . 3 Parts Field Recycled . | . . . . . . . Retrieved Matter . | . . . . . . . Parts Self-Destructed . | . . . . . . . Prevented . | . . . . . . . Kills | -11 -10 -9 -9 -9 -8 -8 ------- Run | Yrd Mat Mat Min Exi Min Mat Combat Hostiles Destroyed 53 | . 8 28 . . 8 9 Guns 19 | . 4 11 . . 3 1 Cannons 16 | . . 12 . . 1 3 AOE 18 | . 4 5 . . 4 5 Classes Destroyed 10 | . 4 3 . . 2 1 Builder 2 | . . . . . . 2 Hauler 6 | . . 6 . . . . Recycler 3 | . 1 1 . . . 1 Operator 1 | . . 1 . . . . Watcher 5 | . 2 2 . . . 1 Swarmer 24 | . 3 14 . . 4 3 Grunt 16 | . 5 7 . . 2 2 Brawler 1 | . . . . . 1 . Sentry 10 | . . 7 . . . 3 Hunter 2 | . . . . . 1 1 Best Kill Streak 7 | . 7 7 . . 4 7 Combat Bots Only 6 | . 5 6 . . 4 5 Max Kills in Single Turn 5 | . 4 3 . . 4 5 Gunslinging 1 | . . 1 . . . . Exploded 4 | . 3 3 . . 4 3 Melee . | . . . . . . . Uniques/NPCs Destroyed . | . . . . . . . Combat | -11 -10 -9 -9 -9 -8 -8 -------- Run | Yrd Mat Mat Min Exi Min Mat Hostile Shots Fired 255 | . 29 120 . . 49 57 Missed 72 | . 6 42 . . 11 13 Damage Taken 2202 | . 307 831 . . 524 540 Core 262 | . 40 73 . . 97 52 Absorbed by Shields 60 | . . . . . 60 . Ignored by Resistances 26 | . . . . . . 26 Core Remaining (%) 80 | 100 84 . . . 57 . Volleys Fired 159 | . 17 103 . . 19 20 Largest 2 | . 2 2 . . 2 2 Hottest 136 | . 50 136 . . 67 80 Shots Fired 317 | . 34 205 . . 38 40 Gun 218 | . 31 135 . . 35 17 Cannon 89 | . . 67 . . 2 20 Launcher 10 | . 3 3 . . 1 3 Special . | . . . . . . . Kinetic 240 | . 31 135 . . 37 37 Thermal 67 | . . 67 . . . . Explosive 10 | . 3 3 . . 1 3 Electromagnetic . | . . . . . . . Robot Hit Streak 26 | . 12 11 . . 26 9 Robot Miss Streak 5 | . 2 5 . . 3 5 Penetration Max . | . . . . . . . Secondary Targets 4 | . . 2 . . 2 . Max Gunslinging Chain 1 | . . 1 . . 1 . Shots Hit Robots 214 | . 23 125 . . 34 32 Core Hits 117 | . 17 53 . . 15 32 Critical Kills 2 | . . 2 . . . . Critical Parts Destroyed . | . . . . . . . Critical Strikes 2 | . . 2 . . . . Destroy 2 | . . 2 . . . . Melee Attacks . | . . . . . . . Impact . | . . . . . . . Slashing . | . . . . . . . Piercing . | . . . . . . . Sneak Attacks . | . . . . . . . Combat Hostiles . | . . . . . . . Follow-up Attacks . | . . . . . . . Damage Inflicted 4511 | . 622 2204 . . 662 1023 Guns 1947 | . 229 1111 . . 439 168 Cannons 1193 | . . 816 . . 13 364 Explosions 1370 | . 393 277 . . 209 491 Melee . | . . . . . . . Ramming 1 | . . . . . 1 . Kinetic 2324 | . 229 1111 . . 452 532 Thermal 816 | . . 816 . . . . Explosive 1370 | . 393 277 . . 209 491 Electromagnetic . | . . . . . . . Impact . | . . . . . . . Slashing . | . . . . . . . Piercing . | . . . . . . . Highest Corruption 3 | . . . . . 3 1 Average Corruption 2 | . . . . . 2 1 Corruption Purged . | . . . . . . . Corruption Blocked . | . . . . . . . Effects 2 | . . . . . 2 . Message Errors 1 | . . . . . 1 . Parts Rejected 1 | . . . . . 1 . Overload Shots . | . . . . . . . Overflow Damage 61 | . 5 2 . . 51 3 Projectiles 5 | . . 2 . . . 3 Explosions 56 | . 5 . . . 51 . Melee . | . . . . . . . Knockbacks 9 | . . . . . 1 8 Impact . | . . . . . . . Kinetic 8 | . . . . . 1 7 Secondary 1 | . . . . . . 1 Self-Inflicted Damage 59 | . 32 . . . . 27 Shots 2 | . 1 . . . . 1 Rammed 1 | . . . . . 1 . Targets Rammed 1 | . . . . . 1 . Kicked . | . . . . . . . Crushed . | . . . . . . . Highest Temperature 354 | . 12 354 . . 80 145 Average Temperature 97 | . 5 124 . . 36 45 Received Heat Transfer 708 | . 120 213 . . 213 162 Effects 6 | . . 6 . . . . Energy Bleed 1 | . . 1 . . . . Interference 3 | . . 3 . . . . Matter Decay 1 | . . 1 . . . . Damage (minor) 1 | . . 1 . . . . Siege Activations . | . . . . . . . Robots Corrupted . | . . . . . . . Combat Hostiles . | . . . . . . . Parts Fried . | . . . . . . . Impact Corruptions . | . . . . . . . Robots Melted . | . . . . . . . Combat Hostiles . | . . . . . . . Parts Melted 7 | . . 7 . . . . Heat Transferred 1480 | . . 1480 . . . . Parts Sabotaged . | . . . . . . . Parts Stolen . | . . . . . . . Parts Stripped . | . . . . . . . Power Chain Reactions . | . . . . . . . Alert | -11 -10 -9 -9 -9 -8 -8 ------- Run | Yrd Mat Mat Min Exi Min Mat Peak Influence 507 | . 170 507 190 . 151 353 Initial 190 | . . 32 190 . . 58 Average 235 | . 55 367 190 . 62 145 Maximum Alert Level 2 | . . 2 . . . 1 Low Security (%) 47 | 100 100 8 100 . 100 53 Level 1 22 | . . 36 . . . 46 Level 2 29 | . . 54 . . . . Level 3 . | . . . . . . . Level 4 . | . . . . . . . Level 5 . | . . . . . . . High Security . | . . . . . . . Max Security . | . . . . . . . Squads Dispatched 6 | . 2 2 . . . 2 Investigation 4 | . 2 1 . . . 1 Extermination . | . . . . . . . Reinforcement 2 | . . 1 . . . 1 Assault . | . . . . . . . Garrison . | . . . . . . . Intercept . | . . . . . . . Searches Triggered . | . . . . . . . Construction Impeded 1 | . . . . . . 1 Haulers Reinforced . | . . . . . . . Active Scanning Responses . | . . . . . . . Cargo Convoy Interrupts . | . . . . . . . Stealth | -11 -10 -9 -9 -9 -8 -8 --------- Run | Yrd Mat Mat Min Exi Min Mat Distress Signals 5 | . 1 2 . . . 2 Communications Jammed . | . . . . . . . Distress Signals . | . . . . . . . Times Spotted 76 | . 11 46 . . 8 11 Peak Tracking Total 6 | . 6 6 . . 4 6 Tactical Retreats . | . . . . . . . Traps | -11 -10 -9 -9 -9 -8 -8 ------- Run | Yrd Mat Mat Min Exi Min Mat Traps Triggered 2 | . 2 . . . . . Indirectly . | . . . . . . . Trap Hack Attempts . | . . . . . . . Triggered . | . . . . . . . Disarmed . | . . . . . . . Reprogrammed . | . . . . . . . Reused . | . . . . . . . Traps Extracted . | . . . . . . . Installed . | . . . . . . . Triggered . | . . . . . . . Machines | -11 -10 -9 -9 -9 -8 -8 ---------- Run | Yrd Mat Mat Min Exi Min Mat Machines Disabled 4 | . . . . . 3 1 Max in Single Turn 3 | . . . . . 3 1 Machines Repaired . | . . . . . . . Machines Dismantled . | . . . . . . . Machines Sabotaged . | . . . . . . . Overloaded Fab Kills . | . . . . . . . Hacking | -11 -10 -9 -9 -9 -8 -8 --------- Run | Yrd Mat Mat Min Exi Min Mat Machines Accessed 13 | . 2 8 . 1 . 2 Terminals 11 | . 2 8 . . . 1 Fabricators . | . . . . . . . Repair Stations . | . . . . . . . Recycling Units 1 | . . . . . . 1 Scanalyzers . | . . . . . . . Garrison Access . | . . . . . . . Total Hacks 30 | . 7 16 . 1 . 6 Successful 11 | . 2 6 . 1 . 2 Failed 19 | . 5 10 . . . 4 Catastrophic 3 | . 1 2 . . . . Database Lockouts . | . . . . . . . Manual 8 | . 6 2 . . . . Terminals 26 | . 7 16 . . . 3 Fabricators . | . . . . . . . Repair Stations . | . . . . . . . Recycling Units 3 | . . . . . . 3 Scanalyzers . | . . . . . . . Garrison Access . | . . . . . . . Terminal Hacks 10 | . 2 6 . 1 . 1 Record 1 | . . . . 1 . . Part Schematic 2 | . 1 1 . . . . Robot Analysis 1 | . . 1 . . . . Alert Level 3 | . . 3 . . . . Locate Traps 2 | . . 1 . . . 1 Registered Components 1 | . 1 . . . . . Fabricator Hacks . | . . . . . . . Repair Station Hacks . | . . . . . . . Recycling Unit Hacks 1 | . . . . . . 1 Retrieve Components 1 | . . . . . . 1 Scanalyzer . | . . . . . . . Garrison Access Hacks . | . . . . . . . Unauthorized Hacks . | . . . . . . . Terminals . | . . . . . . . Fabricators . | . . . . . . . Repair Stations . | . . . . . . . Recycling Units . | . . . . . . . Scanalyzers . | . . . . . . . Garrison Access . | . . . . . . . Data Cores Recovered . | . . . . . . . Used . | . . . . . . . Hacking Detections 7 | . 1 4 . . . 2 Full Trace Events 3 | . 1 1 . . . 1 Feedback Events 1 | . . . . . . 1 Corruption 1 | . . . . . . 1 Feedback Blocked . | . . . . . . . Robot Schematics Acquired . | . . . . . . . Robots Built . | . . . . . . . Authchips . | . . . . . . . Time . | . . . . . . . Total Robot Build Rating . | . . . . . . . Part Schematics Acquired 2 | . 1 1 . . . . Parts Built . | . . . . . . . Authchips . | . . . . . . . Time . | . . . . . . . Total Part Build Rating . | . . . . . . . Parts Repaired . | . . . . . . . Time . | . . . . . . . Parts Recycled . | . . . . . . . Recycled Matter . | . . . . . . . Retrieved Matter . | . . . . . . . Retrieved Components . | . . . . . . . Parts Scanalyzed . | . . . . . . . Part Schematics Acquired . | . . . . . . . Parts Damaged . | . . . . . . . Bothacking | -11 -10 -9 -9 -9 -8 -8 ------------ Run | Yrd Mat Mat Min Exi Min Mat Used RIF Installer . | . . . . . . . Robots Hacked . | . . . . . . . Non-combat . | . . . . . . . Combat . | . . . . . . . Robot Hacks Applied . | . . . . . . . Relay Couplers Released . | . . . . . . . Fabnet Peak Effective % . | . . . . . . . Robots Rewired . | . . . . . . . Allies Hacked . | . . . . . . . Hacks Repelled . | . . . . . . . Allies | -11 -10 -9 -9 -9 -8 -8 -------- Run | Yrd Mat Mat Min Exi Min Mat Total Allies . | . . . . . . . Largest Group . | . . . . . . . Highest-Rated Group . | . . . . . . . Highest-Rated Ally . | . . . . . . . Total Orders . | . . . . . . . Ally Attacks . | . . . . . . . Total Damage . | . . . . . . . Kills . | . . . . . . . Allies Corrupted . | . . . . . . . Allies Melted . | . . . . . . . Intel | -11 -10 -9 -9 -9 -8 -8 ------- Run | Yrd Mat Mat Min Exi Min Mat Robot Analysis Total 1 | . . 1 . . . . Derelict Logs Recovered . | . . . . . . . Drone Launches . | . . . . . . . Drone Recoveries . | . . . . . . . Exploration | -11 -10 -9 -9 -9 -8 -8 ------------- Run | Yrd Mat Mat Min Exi Min Mat Turns Passed 3801 | 65 515 1935 149 204 688 245 Spaces Moved 1850 | 47 281 881 94 128 353 66 Core 24 | 20 . . . . 4 . Treads 1820 | 27 281 881 94 128 343 66 Legs 6 | . . . . . 6 . Wheels . | . . . . . . . Hover . | . . . . . . . Flight . | . . . . . . . Fastest Speed 50 | 50 160 160 160 160 160 240 Average Speed 169 | 114 160 169 160 160 170 261 Slowest Speed 500 | 160 160 240 160 160 500 320 Overloaded Moves . | . . . . . . . Propulsion Burnouts . | . . . . . . . Robots Hopped . | . . . . . . . Cave-ins Triggered . | . . . . . . . Exploration Rate (%) 44 | 3 66 90 21 48 70 12 Regions Visited 6 Branch Regions 3 Pre-discovered Areas 1 | . . . . 1 . . Known Exits Taken . | . . . . . . . Unknown Exits Taken 6 | 1 1 1 1 1 1 . Scrap Searched 1 | . . . . . 1 . Spaces Dug . | . . . . . . . Terrain Destroyed 38 | . 9 14 . . 6 9 Melee . | . . . . . . . Projectile . | . . . . . . . AOE 38 | . 9 14 . . 6 9 Terrain Rammed . | . . . . . . . Walls Destroyed . | . . . . . . . Machines Disabled . | . . . . . . . Actions | -11 -10 -9 -9 -9 -8 -8 --------- Run | Yrd Mat Mat Min Exi Min Mat Total 2210 | 58 314 1121 93 127 401 96 Wait 89 | . 5 68 . . 16 . Move 1844 | 46 280 880 93 127 352 66 Hop . | . . . . . . . Pick Up 37 | 6 7 18 . . 4 2 Fast Attach 24 | 1 . 18 . . 1 4 Attach 11 | 5 . 3 . . 2 1 Detach 3 | . . 2 . . . 1 Swap 13 | . 4 6 . . 2 1 Drop 29 | . 1 23 . . 4 1 Fire 159 | . 17 103 . . 19 20 Melee . | . . . . . . . Ram . | . . . . . . . Kick . | . . . . . . . Crush 1 | . . . . . 1 . Escape Stasis . | . . . . . . . Rewire . | . . . . . . . Trap . | . . . . . . . Miscellaneous . | . . . . . . . Route ------- -11/Scrapyard -10/Materials (discovered 2 exits: *Mat / [*Min]) -9/Materials (discovered 5 exits: *Mat x3 / [*Min] / [*Sto]) -9/Mines (discovered 2 exits: *Mat / *Exi) -9/Exiles -8/Mines -8/Materials History --------- Turn | Location | Event 11 | -11/Scrapyard | Discovered new exit (range 14) 66 | -11/Scrapyard | Entered Materials 187 | -10/Materials | Discovered new exit (range 16) 339 | -10/Materials | Build established: Mutant 420 | -10/Materials | Discovered new exit (range 14) 581 | -10/Materials | Entered another Materials area 581 | -9/Materials | Evolved 2 slots: Propulsion x1, Utility x1 975 | -9/Materials | Discovered new exit (range 3) 1378 | -9/Materials | Discovered new exit (range 15) 1695 | -9/Materials | Build established: Scavenger-Mutant 1776 | -9/Materials | Discovered new exit (range 6) 1846 | -9/Materials | Discovered new exit (range 11) 1888 | -9/Materials | Discovered new exit (range 10) 2110 | -9/Materials | Build established: Mutant 2516 | -9/Materials | Entered Mines 2544 | -9/Mines | Discovered new exit (range 9) 2654 | -9/Mines | Build established: Scavenger-Mutant 2659 | -9/Mines | Deemed a non-threat by the Exiles lab entrance 2659 | -9/Mines | Discovered new exit (range 5) 2665 | -9/Mines | Entered Exiles 2702 | -9/Exiles | Met 8R-AWN 2731 | -9/Exiles | Met EX-HEX 2795 | -9/Exiles | Met EX-DEC 2801 | -9/Exiles | Learned location of Zion (-6) 2848 | -9/Exiles | Discovered new exit (range 14) 2869 | -9/Exiles | Entered Mines 3476 | -8/Mines | Discovered new exit (range 7) 3483 | -8/Mines | Lost 6 parts (1p2n2u1w) 3557 | -8/Mines | Entered Materials 3557 | -8/Materials | Evolved 2 slots: Propulsion x1, Utility x1 3743 | -8/Materials | Build established: Mutant 3802 | -8/Materials | Self-destructed Last Messages --------------- 03714_ Acquired 5 matter. 03733_ R-06 Scavenger knocked back. 03753_ Connecting with Recycling Unit... Feedback: System corruption (+1%). 03753_ ALERT: Suspicious activity at Recycling Unit M002. Dispatching Investigation squad. 03753_ Dropped Mni. Grenade Launcher. 03758_ Acquired Minigun. 03764_ Acquired Reflective Plating. 03782_ G-47 Trooper knocked back. 03793_ Electrolysis Chamber disabled. 03794_ Med. Armor Plating destroyed. 03796_ S-10 Pest destroyed. 03796_ U-05 Engineer destroyed. 03796_ S-10 Pest destroyed. 03796_ U-05 Engineer destroyed. 03797_ ALERT: Construction progress impeded, dispatching reinforcements to local area. 03799_ G-47 Trooper destroyed. 03802_ M-13 Machinist repairs U-05 Engineer. Map ----- +----------------------------------------------------+ | ?????????????????????????????????????????????????? | | ?????????????????????????????????????????????????? | | ?????????????????????????????????????????????????? | | ?????????????????????????????????????????????????? | | ?????????????????????????????????????????????????? | | ?????????????????????????????????????????????????? | | ?????????????????????????????????????????????????? | | ?????????????????????????????????????????????????? | | ?????????????????????????????????????????????????? | | ?????????????????????????????????????????????????? | | ?????????????????????????????????????????????????? | | ????????????????????? ???????????????????????????? | | ????????????????????gg???##?##???????????????????? | | ??????????????????#? a### # ###?????????????????? | | ??????????????????# ?????????????????? | | ??????????????????# ^ ??????????????????? | | ??????????????????# ??????????????????? | | ??????????????????# % #??????????????????? | | ??????????????????# % ###????????????????? | | ??????????????????# " !!#????????????????? | | ????????????#+##### !!#????????????????? | | ???????????# ! !!#????????????????? | | ?????????????? %%= !!#????????????????? | | ????????????????? %*%! !!#????????????????? | | ????????????????????#* = !!#????????????????? | | ??????????????????????# @ ########??????????????? | | ??????????????????????# # #??????????????? | | ??????????????????????# # ]""#??????????????? | | ??????????????????????#m + Y"#??????????????? | | ??????????????????????#u r# [ ""#??????????????? | | ??????????????????????# # [ #??????????????? | | ????????????????####### # !#??????????????? | | ????????????????# % ## #####??????????????? | | ????????????????# ####??????????????????? | | ????????????????# #?????????????????????? | | ????????????????+ % #?????????????????????? | | ????????????????# ! #?????????????????????? | | ????????????????# """" #?????????????????????? | | ????????????????# """"" #?????????????????????? | | ????????????????# """"" #?????????????????????? | | ????????????????# """"" #?????????????????????? | | ?^??????????????# """"" #?????????????????????? | | ????############# """"" #?????????????????????? | | ? =!! [ """"" #?????????????????????? | | ? !%* = #?????????????????????? | | ????############# #?????????????????????? | | ????????????????# """"" #?????????????????????? | | ??????????????### """"" #?????????????????????? | | ??????????????#"" """"" #?????????????????????? | | ??????????????#"T """"" +?????????????????????? | +----------------------------------------------------+ Best States ------------- Heat Dissipation 38 Energy Generation 14 Energy Capacity 275 Matter Stores 300 Matter Capacity 300 Sight Range 16 Robot Scan Range 14 Terrain Scan Density 10 Armor Coverage 450 Resistance: TH 10 Evasion (%) 50 Recoil Reduction 3 Particle Charging 15 Item Schematics ----------------- Lrg. Storage Unit | -10/Materials | Hacked Med. Storage Unit | -9/Materials | Hacked Robot Schematics ------------------ None Fabricated ------------ Nothing Alien Tech Used ----------------- None Achievements -------------- None Challenges ------------ None Game ------ Seed OpticalAbsorptionRay Manual? 0 Play Time 00:21:27 Cumulative 100.5 hours Start 2024.04.17 @ 13:46:51 End 2024.04.17 @ 17:46:18 Sessions 3 Manual Loads 0 Difficulty Rogue Special Mode None Game No. 126 Rogue 126 Adventurer 0 Explorer 0 Win Type - Total 1 Types 1/0/0/0/0/0/0/0/0 Lore% 43 Gallery% 50 Achievement% 48 Wizard Run 0 Options --------- Layout 1 ASCII 0 Keyboard 0 Movement Mouse Keybinds 0 Fullscreen 2 Font 32/Smallcaps Map View 50x40 Zoom Use 0% Tactical HUD 1 Map Filters NONE Filters NONE Steam 1 RUN: 3eda8a8e-4ffe-403f-b77a-76cafc145269